[Event "*** Titled Tuesday Blitz"]
[Site "Chess.com"]
[Date "2021.04.20"]
[Round "7"]
[White "CM_rui"]
[Black "Andrii_Prydun"]
[Result "1/2-1/2"]
[WhiteElo "2460"]
[BlackElo "2335"]
[TimeControl "180+1"]
[EndTime "11:16:49 PDT"]
[Termination "Game drawn by repetition"]

1. e4 {[%clk 0:03:00.9]} 1... d5 {[%clk 0:02:59.2]} 2. exd5 {[%clk 0:03:01.8]}
2... Qxd5 {[%clk 0:02:59.7]} 3. Nf3 {[%clk 0:03:02.4]} 3... Nf6 {[%clk 0:02:59]}
4. Nc3 {[%clk 0:03:01.9]} 4... Qd6 {[%clk 0:02:59.1]} 5. Be2 {[%clk 0:03:02.1]}
5... Bf5 {[%clk 0:02:58.1]} 6. d3 {[%clk 0:03:01.8]} 6... h6 {[%clk 0:02:57.7]}
7. Be3 {[%clk 0:03:00.6]} 7... e6 {[%clk 0:02:57.7]} 8. Qd2 {[%clk 0:02:59.5]}
8... Be7 {[%clk 0:02:57.2]} 9. h3 {[%clk 0:02:56.8]} 9... a6 {[%clk 0:02:54.5]}
10. Bf4 {[%clk 0:02:48.9]} 10... Qd8 {[%clk 0:02:53.8]} 11. g4 {[%clk
0:02:45.1]} 11... Bg6 {[%clk 0:02:53.1]} 12. Ne5 {[%clk 0:02:42.4]} 12... Bh7
{[%clk 0:02:53.5]} 13. Bf3 {[%clk 0:02:34.5]} 13... c6 {[%clk 0:02:51.5]} 14.
O-O-O {[%clk 0:02:32.1]} 14... Nbd7 {[%clk 0:02:51.3]} 15. Nc4 {[%clk
0:02:10.3]} 15... Nb6 {[%clk 0:02:45.5]} 16. Qe3 {[%clk 0:02:03]} 16... Nbd5
{[%clk 0:02:43.6]} 17. Nxd5 {[%clk 0:01:51.6]} 17... Nxd5 {[%clk 0:02:36.9]} 18.
Bxd5 {[%clk 0:01:51.6]} 18... cxd5 {[%clk 0:02:36.4]} 19. Ne5 {[%clk 0:01:39.3]}
19... Rc8 {[%clk 0:01:51]} 20. Rde1 {[%clk 0:01:30.1]} 20... Bc5 {[%clk
0:01:26.1]} 21. Qf3 {[%clk 0:00:58.5]} 21... Qb6 {[%clk 0:00:55.6]} 22. Nxf7
{[%clk 0:00:28.7]} 22... O-O {[%clk 0:00:55.7]} 23. Ne5 {[%clk 0:00:20.1]} 23...
g5 {[%clk 0:00:55.6]} 24. Nd7 {[%clk 0:00:10.3]} 24... Qa5 {[%clk 0:00:54.9]}
25. Nxf8 {[%clk 0:00:08.1]} 25... Rxf8 {[%clk 0:00:55.8]} 26. Rxe6 {[%clk
0:00:08.1]} 26... Rxf4 {[%clk 0:00:52.3]} 27. Re8+ {[%clk 0:00:04.2]} 27... Kf7
{[%clk 0:00:38.3]} 28. Qe2 {[%clk 0:00:04.6]} 28... Be4 {[%clk 0:00:38.4]} 29.
Rc8 {[%clk 0:00:03.8]} 29... Rxf2 {[%clk 0:00:30.1]} 30. Qd1 {[%clk 0:00:01.6]}
30... Be3+ {[%clk 0:00:28.5]} 31. Kb1 {[%clk 0:00:01.5]} 31... Bxh1 {[%clk
0:00:28.2]} 32. Qxh1 {[%clk 0:00:02.4]} 32... Kg7 {[%clk 0:00:13.5]} 33. Re8
{[%clk 0:00:02]} 33... Rg2 {[%clk 0:00:12]} 34. Qf1 {[%clk 0:00:01.4]} 34... Rg1
{[%clk 0:00:12]} 35. Re7+ {[%clk 0:00:01.9]} 35... Kg8 {[%clk 0:00:04.7]} 36.
Re8+ {[%clk 0:00:02.3]} 36... Kg7 {[%clk 0:00:05.1]} 37. Re7+ {[%clk 0:00:03.2]}
37... Kg8 {[%clk 0:00:05.5]} 38. Re8+ {[%clk 0:00:03.7]} 38... Kg7 {[%clk
0:00:05]} 1/2-1/2

[Event "*** Titled Tuesday Blitz"]
[Site "Chess.com"]
[Date "2021.04.20"]
[Round "7"]
[White "grzechu96"]
[Black "AshotParvanyan"]
[Result "1-0"]
[WhiteElo "2684"]
[BlackElo "2528"]
[TimeControl "180+1"]
[EndTime "11:16:50 PDT"]
[Termination "grzechu96 won by resignation"]

1. e4 {[%clk 0:03:00.9]} 1... e6 {[%clk 0:02:59.9]} 2. d4 {[%clk 0:03:00.9]}
2... d5 {[%clk 0:03:00.1]} 3. Nc3 {[%clk 0:02:59.6]} 3... Bb4 {[%clk 0:02:59.6]}
4. exd5 {[%clk 0:03:00]} 4... exd5 {[%clk 0:02:59.5]} 5. Bd3 {[%clk 0:03:00.4]}
5... c6 {[%clk 0:02:59.9]} 6. Ne2 {[%clk 0:02:58.2]} 6... Ne7 {[%clk 0:02:58.9]}
7. O-O {[%clk 0:02:56.4]} 7... Bf5 {[%clk 0:02:56.4]} 8. Ng3 {[%clk 0:02:53.3]}
8... Bxd3 {[%clk 0:02:55.3]} 9. Qxd3 {[%clk 0:02:54.2]} 9... O-O {[%clk
0:02:54.6]} 10. Nce2 {[%clk 0:02:54.2]} 10... Nd7 {[%clk 0:02:39.9]} 11. Bf4
{[%clk 0:02:40.4]} 11... Ng6 {[%clk 0:02:35.1]} 12. Nh5 {[%clk 0:02:38.3]} 12...
Nxf4 {[%clk 0:01:59.3]} 13. Nexf4 {[%clk 0:02:38.3]} 13... Bd6 {[%clk
0:01:48.7]} 14. Qf5 {[%clk 0:02:14.4]} 14... Kh8 {[%clk 0:01:04.4]} 15. Qg4
{[%clk 0:02:00.9]} 15... g6 {[%clk 0:00:47.2]} 16. Ng3 {[%clk 0:02:01]} 16...
Nf6 {[%clk 0:00:23.7]} 17. Qf3 {[%clk 0:02:01.2]} 17... Re8 {[%clk 0:00:14.7]}
18. Rfe1 {[%clk 0:01:55.2]} 18... Kg7 {[%clk 0:00:14.8]} 19. Nd3 {[%clk
0:01:46.9]} 19... Qc7 {[%clk 0:00:11]} 20. Re3 {[%clk 0:01:46.7]} 20... Bxg3
{[%clk 0:00:10]} 21. hxg3 {[%clk 0:01:45.1]} 21... Rxe3 {[%clk 0:00:09.9]} 22.
Qxe3 {[%clk 0:01:44.9]} 22... Re8 {[%clk 0:00:09.5]} 23. Qf3 {[%clk 0:01:43.3]}
23... Ne4 {[%clk 0:00:09.2]} 24. c3 {[%clk 0:01:41.7]} 24... Nd2 {[%clk
0:00:08.1]} 25. Qd1 {[%clk 0:01:35.7]} 25... Ne4 {[%clk 0:00:07.1]} 26. a4
{[%clk 0:01:31.2]} 26... h5 {[%clk 0:00:06.2]} 27. a5 {[%clk 0:01:29.5]} 27...
a6 {[%clk 0:00:06.3]} 28. Qf3 {[%clk 0:01:17.7]} 28... Ng5 {[%clk 0:00:05.6]}
29. Qf4 {[%clk 0:01:17.6]} 29... Qxf4 {[%clk 0:00:05.3]} 30. gxf4 {[%clk
0:01:18.5]} 30... Ne4 {[%clk 0:00:05.1]} 31. Ra4 {[%clk 0:01:06.8]} 31... Nd6
{[%clk 0:00:04.7]} 32. Rb4 {[%clk 0:01:07.2]} 32... Re2 {[%clk 0:00:04.7]} 33.
Kf1 {[%clk 0:01:05.2]} 33... Rd2 {[%clk 0:00:03.8]} 34. Nc5 {[%clk 0:01:05.8]}
34... Rd1+ {[%clk 0:00:03.3]} 35. Ke2 {[%clk 0:01:05.7]} 35... Rb1 {[%clk
0:00:03.2]} 36. Nxb7 {[%clk 0:01:05.3]} 36... Nc4 {[%clk 0:00:03.4]} 37. Nc5
{[%clk 0:01:05.6]} 37... Nxb2 {[%clk 0:00:03]} 38. Nxa6 {[%clk 0:00:47.7]} 38...
Nd1 {[%clk 0:00:03.3]} 39. Rxb1 {[%clk 0:00:47.5]} 39... Nxc3+ {[%clk
0:00:03.6]} 40. Kd3 {[%clk 0:00:48]} 40... Nxb1 {[%clk 0:00:04.5]} 41. Nb4
{[%clk 0:00:46.2]} 41... Na3 {[%clk 0:00:04.9]} 42. a6 {[%clk 0:00:46.1]} 42...
Nb5 {[%clk 0:00:05.1]} 43. Nxc6 {[%clk 0:00:46.5]} 43... Nc7 {[%clk 0:00:05.2]}
44. a7 {[%clk 0:00:46.1]} 44... Kf8 {[%clk 0:00:05.7]} 45. Nb4 {[%clk
0:00:45.7]} 45... Ke8 {[%clk 0:00:04.8]} 46. Nxd5 {[%clk 0:00:46]} 46... Na8
{[%clk 0:00:05.3]} 47. Kc4 {[%clk 0:00:46.2]} 47... Kd7 {[%clk 0:00:05.6]} 48.
Kc5 {[%clk 0:00:46.7]} 48... Kc8 {[%clk 0:00:05.5]} 49. Nb6+ {[%clk 0:00:46.5]}
49... Kb7 {[%clk 0:00:05.4]} 50. Nxa8 {[%clk 0:00:46.8]} 50... Kxa8 {[%clk
0:00:06.3]} 51. d5 {[%clk 0:00:46.9]} 51... Kxa7 {[%clk 0:00:06.6]} 52. Kd6
{[%clk 0:00:47.2]} 52... Kb6 {[%clk 0:00:06.6]} 53. Ke7 {[%clk 0:00:47.3]} 1-0

[Event "*** Titled Tuesday Blitz"]
[Site "Chess.com"]
[Date "2021.04.20"]
[Round "7"]
[White "Orest_Vovk"]
[Black "ZeZacarias"]
[Result "1-0"]
[WhiteElo "2467"]
[BlackElo "2171"]
[TimeControl "180+1"]
[EndTime "11:16:52 PDT"]
[Termination "Orest_Vovk won by resignation"]

1. h3 {[%clk 0:03:00.9]} 1... d5 {[%clk 0:02:56.5]} 2. e4 {[%clk 0:03:00.5]}
2... dxe4 {[%clk 0:02:53.3]} 3. Nc3 {[%clk 0:03:00.7]} 3... Nf6 {[%clk
0:02:50.3]} 4. Qe2 {[%clk 0:03:00.6]} 4... Nc6 {[%clk 0:02:45.5]} 5. Nxe4 {[%clk
0:03:00.5]} 5... Nd4 {[%clk 0:02:41.5]} 6. Nxf6+ {[%clk 0:03:00]} 6... gxf6
{[%clk 0:02:38.7]} 7. Qd1 {[%clk 0:02:59.8]} 7... Bf5 {[%clk 0:02:34.1]} 8. d3
{[%clk 0:03:00]} 8... Qd5 {[%clk 0:02:28.9]} 9. Be3 {[%clk 0:02:58.9]} 9...
O-O-O {[%clk 0:02:25]} 10. c3 {[%clk 0:02:58.9]} 10... Nc6 {[%clk 0:02:20.7]}
11. Qa4 {[%clk 0:02:54.9]} 11... Bxd3 {[%clk 0:02:06.2]} 12. O-O-O {[%clk
0:02:54.3]} 12... Qe4 {[%clk 0:02:02]} 13. Qxe4 {[%clk 0:02:49.5]} 13... Bxe4
{[%clk 0:02:00.9]} 14. Rxd8+ {[%clk 0:02:49.4]} 14... Kxd8 {[%clk 0:01:55.4]}
15. f3 {[%clk 0:02:49.1]} 15... Bd5 {[%clk 0:01:44.2]} 16. b3 {[%clk 0:02:48.7]}
16... e5 {[%clk 0:01:37.2]} 17. Ne2 {[%clk 0:02:42.8]} 17... Ba3+ {[%clk
0:01:32.9]} 18. Kc2 {[%clk 0:02:41.5]} 18... Rg8 {[%clk 0:01:29.8]} 19. Bf2
{[%clk 0:02:35.6]} 19... f5 {[%clk 0:01:26.6]} 20. Ng3 {[%clk 0:02:32.5]} 20...
f4 {[%clk 0:01:23.1]} 21. Ne4 {[%clk 0:02:24.5]} 21... Be7 {[%clk 0:01:17.2]}
22. Rg1 {[%clk 0:02:06.9]} 22... f5 {[%clk 0:01:13.8]} 23. Nd2 {[%clk
0:02:06.9]} 23... e4 {[%clk 0:01:09.8]} 24. c4 {[%clk 0:01:47.8]} 24... e3
{[%clk 0:00:48]} 25. Be1 {[%clk 0:01:40.6]} 25... Nd4+ {[%clk 0:00:44.3]} 26.
Kd3 {[%clk 0:01:37.7]} 26... exd2 {[%clk 0:00:40.8]} 27. Bxd2 {[%clk 0:01:36.3]}
27... Nxf3 {[%clk 0:00:36.8]} 28. Bxf4 {[%clk 0:01:17.1]} 28... Nxg1 {[%clk
0:00:35.2]} 29. cxd5 {[%clk 0:01:17]} 29... a6 {[%clk 0:00:14]} 30. Be3 {[%clk
0:01:15.7]} 30... Nxh3 {[%clk 0:00:04.9]} 31. gxh3 {[%clk 0:01:16.6]} 31... Rg3
{[%clk 0:00:05.3]} 32. Ke2 {[%clk 0:01:11.5]} 32... Bd6 {[%clk 0:00:05.2]} 33.
Bf2 {[%clk 0:01:07]} 33... Rc3 {[%clk 0:00:03.4]} 34. Kd2 {[%clk 0:01:06.8]}
34... Rf3 {[%clk 0:00:01.5]} 35. Ke2 {[%clk 0:01:03.4]} 35... Rc3 {[%clk
0:00:01.4]} 36. Bd4 {[%clk 0:00:54.4]} 36... Rc2+ {[%clk 0:00:01.6]} 37. Kf3
{[%clk 0:00:53.4]} 37... Rxa2 {[%clk 0:00:02.5]} 38. Bd3 {[%clk 0:00:53.8]}
38... c5 {[%clk 0:00:02.7]} 39. dxc6 {[%clk 0:00:53.3]} 39... bxc6 {[%clk
0:00:03]} 40. Bxf5 {[%clk 0:00:53.9]} 40... Kc7 {[%clk 0:00:03.1]} 41. Bxh7
{[%clk 0:00:53]} 41... Ra3 {[%clk 0:00:04]} 42. Bg8 {[%clk 0:00:53.2]} 42... c5
{[%clk 0:00:03]} 43. Bb2 {[%clk 0:00:53]} 43... Ra2 {[%clk 0:00:03]} 44. Bf6
{[%clk 0:00:49.3]} 44... a5 {[%clk 0:00:03.9]} 45. h4 {[%clk 0:00:48.4]} 45...
Ra3 {[%clk 0:00:04.5]} 46. Ke4 {[%clk 0:00:46.3]} 46... a4 {[%clk 0:00:04.2]}
47. bxa4 {[%clk 0:00:46.5]} 47... Rxa4+ {[%clk 0:00:05.1]} 48. Kf5 {[%clk
0:00:46.6]} 48... Kd7 {[%clk 0:00:05.1]} 49. h5 {[%clk 0:00:45.8]} 49... Re4
{[%clk 0:00:05.1]} 50. Kxe4 {[%clk 0:00:45]} 1-0

[Event "*** Titled Tuesday Blitz"]
[Site "Chess.com"]
[Date "2021.04.20"]
[Round "7"]
[White "DamianoLew95"]
[Black "supertfc"]
[Result "1-0"]
[WhiteElo "2515"]
[BlackElo "2347"]
[TimeControl "180+1"]
[EndTime "11:16:53 PDT"]
[Termination "DamianoLew95 won on time"]

1. d4 {[%clk 0:03:00.9]} 1... Nf6 {[%clk 0:02:59.2]} 2. Bf4 {[%clk 0:02:59.1]}
2... d5 {[%clk 0:02:58.8]} 3. e3 {[%clk 0:02:59.1]} 3... e6 {[%clk 0:02:58.6]}
4. c3 {[%clk 0:02:56.8]} 4... c5 {[%clk 0:02:58.5]} 5. Nd2 {[%clk 0:02:56.3]}
5... Bd6 {[%clk 0:02:58.8]} 6. Bg3 {[%clk 0:02:54.5]} 6... Qc7 {[%clk
0:02:58.7]} 7. Ngf3 {[%clk 0:02:45.3]} 7... Nbd7 {[%clk 0:02:58.4]} 8. Bd3
{[%clk 0:02:41.6]} 8... O-O {[%clk 0:02:56.4]} 9. O-O {[%clk 0:02:41.1]} 9... e5
{[%clk 0:02:54.5]} 10. dxe5 {[%clk 0:02:41.1]} 10... Nxe5 {[%clk 0:02:55.4]} 11.
Nxe5 {[%clk 0:02:40.7]} 11... Bxe5 {[%clk 0:02:56.3]} 12. e4 {[%clk 0:02:31.5]}
12... Bxg3 {[%clk 0:02:52]} 13. hxg3 {[%clk 0:02:32.4]} 13... Bg4 {[%clk
0:02:48.9]} 14. Qc2 {[%clk 0:02:31]} 14... c4 {[%clk 0:02:45]} 15. exd5 {[%clk
0:02:29.6]} 15... cxd3 {[%clk 0:02:45]} 16. Qxd3 {[%clk 0:02:29.7]} 16... Qe5
{[%clk 0:02:22.3]} 17. c4 {[%clk 0:01:45.3]} 17... Be2 {[%clk 0:02:16.9]} 18.
Rfe1 {[%clk 0:01:44.7]} 18... Bxd3 {[%clk 0:02:16.7]} 19. Rxe5 {[%clk
0:01:44.3]} 19... Rfe8 {[%clk 0:02:17.2]} 20. Ree1 {[%clk 0:01:24.2]} 20...
Rxe1+ {[%clk 0:02:05.7]} 21. Rxe1 {[%clk 0:01:23.6]} 21... Re8 {[%clk
0:02:06.6]} 22. Rxe8+ {[%clk 0:01:22.8]} 22... Nxe8 {[%clk 0:02:07.5]} 23. f3
{[%clk 0:01:20.3]} 23... b6 {[%clk 0:02:02.6]} 24. Kf2 {[%clk 0:01:19.9]} 24...
Nd6 {[%clk 0:02:00]} 25. b3 {[%clk 0:01:18.8]} 25... Kf8 {[%clk 0:01:49.4]} 26.
g4 {[%clk 0:01:18.7]} 26... Ke7 {[%clk 0:01:40.4]} 27. Ke3 {[%clk 0:01:18.6]}
27... Bc2 {[%clk 0:01:38.2]} 28. b4 {[%clk 0:01:13.9]} 28... Nb7 {[%clk
0:01:14.9]} 29. Kd4 {[%clk 0:01:09.5]} 29... Kd6 {[%clk 0:01:15.1]} 30. a3
{[%clk 0:01:05.5]} 30... f5 {[%clk 0:01:04.2]} 31. g5 {[%clk 0:00:55.3]} 31...
a5 {[%clk 0:00:53.4]} 32. Nf1 {[%clk 0:00:46]} 32... g6 {[%clk 0:00:26.4]} 33.
Ne3 {[%clk 0:00:44.8]} 33... Ba4 {[%clk 0:00:24.5]} 34. Nf1 {[%clk 0:00:34.9]}
34... Bd7 {[%clk 0:00:20.4]} 35. Ng3 {[%clk 0:00:32.7]} 35... Be8 {[%clk
0:00:05.2]} 36. Ne2 {[%clk 0:00:31.7]} 36... Bf7 {[%clk 0:00:04]} 37. Nf4 {[%clk
0:00:31.5]} 37... Bg8 {[%clk 0:00:02.8]} 38. Nd3 {[%clk 0:00:31.3]} 38... Bf7
{[%clk 0:00:02]} 39. c5+ {[%clk 0:00:29.9]} 39... Kc7 {[%clk 0:00:02.2]} 40. Ne5
{[%clk 0:00:25.2]} 40... Bg8 {[%clk 0:00:02.5]} 41. Nc4 {[%clk 0:00:20.6]} 41...
axb4 {[%clk 0:00:01.4]} 42. axb4 {[%clk 0:00:16.8]} 42... bxc5+ {[%clk
0:00:01.1]} 43. bxc5 {[%clk 0:00:17.7]} 1-0

[Event "*** Titled Tuesday Blitz"]
[Site "Chess.com"]
[Date "2021.04.20"]
[Round "7"]
[White "Mr_Sinigami"]
[Black "elm2007"]
[Result "1-0"]
[WhiteElo "2617"]
[BlackElo "2781"]
[TimeControl "180+1"]
[EndTime "11:16:54 PDT"]
[Termination "Mr_Sinigami won by resignation"]

1. d4 {[%clk 0:03:00.9]} 1... Nf6 {[%clk 0:02:56.8]} 2. Nf3 {[%clk 0:03:00.9]}
2... e6 {[%clk 0:02:47.3]} 3. Bf4 {[%clk 0:03:00.5]} 3... d5 {[%clk 0:02:45.8]}
4. e3 {[%clk 0:03:00.5]} 4... c5 {[%clk 0:02:45.2]} 5. Nbd2 {[%clk 0:03:00]}
5... Nc6 {[%clk 0:02:44.6]} 6. c3 {[%clk 0:03:00.1]} 6... cxd4 {[%clk
0:02:43.2]} 7. exd4 {[%clk 0:02:59.9]} 7... Be7 {[%clk 0:02:39.6]} 8. Bd3 {[%clk
0:02:59.2]} 8... O-O {[%clk 0:02:39.8]} 9. O-O {[%clk 0:02:58.5]} 9... Ne8
{[%clk 0:02:38.8]} 10. Re1 {[%clk 0:02:57]} 10... f5 {[%clk 0:02:38.7]} 11. Ne5
{[%clk 0:02:49.5]} 11... Nf6 {[%clk 0:02:37.2]} 12. h3 {[%clk 0:02:36.4]} 12...
Ne4 {[%clk 0:02:35.7]} 13. f3 {[%clk 0:02:34.3]} 13... Bh4 {[%clk 0:02:26.8]}
14. Re2 {[%clk 0:02:15.2]} 14... Ng3 {[%clk 0:02:23.4]} 15. Bxg3 {[%clk
0:02:14.2]} 15... Bxg3 {[%clk 0:02:24.3]} 16. Nxc6 {[%clk 0:02:11.4]} 16... bxc6
{[%clk 0:02:22.9]} 17. Nf1 {[%clk 0:02:11.3]} 17... Bd6 {[%clk 0:02:22.7]} 18.
Qd2 {[%clk 0:02:02.6]} 18... c5 {[%clk 0:02:18.4]} 19. dxc5 {[%clk 0:01:54.3]}
19... Bxc5+ {[%clk 0:02:19.3]} 20. Kh1 {[%clk 0:01:54.7]} 20... Bd6 {[%clk
0:02:19.2]} 21. f4 {[%clk 0:01:44.5]} 21... Kh8 {[%clk 0:02:17.3]} 22. Nh2
{[%clk 0:01:40.6]} 22... g5 {[%clk 0:02:11.5]} 23. fxg5 {[%clk 0:01:35.8]} 23...
e5 {[%clk 0:02:10.9]} 24. g6 {[%clk 0:01:26.7]} 24... e4 {[%clk 0:01:56.4]} 25.
Qh6 {[%clk 0:01:22.8]} 25... Qd7 {[%clk 0:01:56.2]} 26. g7+ {[%clk 0:01:17.2]}
26... Qxg7 {[%clk 0:01:51.6]} 27. Qxd6 {[%clk 0:01:17.2]} 27... exd3 {[%clk
0:01:52.2]} 28. Re7 {[%clk 0:01:02.7]} 28... Qf6 {[%clk 0:01:33]} 29. Qxf6+
{[%clk 0:01:02.3]} 29... Rxf6 {[%clk 0:01:33.9]} 30. Re8+ {[%clk 0:01:02.6]}
30... Kg7 {[%clk 0:01:32.8]} 31. Rd1 {[%clk 0:01:02.4]} 31... f4 {[%clk
0:01:30.3]} 32. Rxd3 {[%clk 0:00:56.2]} 32... Bf5 {[%clk 0:01:28.8]} 33. Rxa8
{[%clk 0:00:54.7]} 33... Bxd3 {[%clk 0:01:26.1]} 34. Rxa7+ {[%clk 0:00:54.7]}
34... Kg6 {[%clk 0:01:23]} 35. Re7 {[%clk 0:00:49.5]} 35... Be4 {[%clk
0:01:20.3]} 36. Nf3 {[%clk 0:00:49.1]} 36... Rb6 {[%clk 0:01:17.5]} 37. b3
{[%clk 0:00:39.4]} 37... Ra6 {[%clk 0:01:15.3]} 38. a4 {[%clk 0:00:38.7]} 38...
Kf6 {[%clk 0:01:12.8]} 39. Rc7 {[%clk 0:00:36.6]} 39... Bc2 {[%clk 0:01:03]} 40.
Nd4 {[%clk 0:00:36.3]} 40... Bd1 {[%clk 0:01:00.5]} 41. Kg1 {[%clk 0:00:35.9]}
41... Ra8 {[%clk 0:00:57.7]} 42. Kf2 {[%clk 0:00:34.8]} 42... Rb8 {[%clk
0:00:55.5]} 43. b4 {[%clk 0:00:34]} 43... Bxa4 {[%clk 0:00:54.8]} 44. Ra7 {[%clk
0:00:30.4]} 44... Be8 {[%clk 0:00:48.6]} 45. Rc7 {[%clk 0:00:20]} 45... Ra8
{[%clk 0:00:48]} 46. Kf3 {[%clk 0:00:19.6]} 46... Ra2 {[%clk 0:00:44]} 47. Rxh7
{[%clk 0:00:19.2]} 47... Ra3 {[%clk 0:00:38.6]} 48. Rc7 {[%clk 0:00:18.4]} 48...
Ra2 {[%clk 0:00:37.1]} 49. b5 {[%clk 0:00:16.3]} 49... Rxg2 {[%clk 0:00:36]} 50.
Kxg2 {[%clk 0:00:15.9]} 1-0

[Event "*** Titled Tuesday Blitz"]
[Site "Chess.com"]
[Date "2021.04.20"]
[Round "7"]
[White "LamaChampetre"]
[Black "chessprincesa1"]
[Result "1-0"]
[WhiteElo "2210"]
[BlackElo "2315"]
[TimeControl "180+1"]
[EndTime "11:16:55 PDT"]
[Termination "LamaChampetre won on time"]

1. d4 {[%clk 0:03:00.9]} 1... Nf6 {[%clk 0:02:58.3]} 2. c4 {[%clk 0:03:01]} 2...
e6 {[%clk 0:02:53.3]} 3. Nf3 {[%clk 0:03:00.6]} 3... d5 {[%clk 0:02:50.5]} 4. g3
{[%clk 0:03:01.5]} 4... dxc4 {[%clk 0:02:44.4]} 5. Bg2 {[%clk 0:03:02.4]} 5...
Be7 {[%clk 0:02:43.5]} 6. O-O {[%clk 0:03:03.3]} 6... O-O {[%clk 0:02:42]} 7.
Ne5 {[%clk 0:03:02.4]} 7... Nc6 {[%clk 0:02:41.9]} 8. Bxc6 {[%clk 0:03:01.7]}
8... bxc6 {[%clk 0:02:42.8]} 9. Nxc6 {[%clk 0:03:02.5]} 9... Qe8 {[%clk
0:02:42.3]} 10. Nxe7+ {[%clk 0:03:03]} 10... Qxe7 {[%clk 0:02:43.2]} 11. Qa4
{[%clk 0:03:03.3]} 11... c5 {[%clk 0:02:41.7]} 12. Qa3 {[%clk 0:03:02.6]} 12...
Bb7 {[%clk 0:02:37.9]} 13. Bg5 {[%clk 0:02:56.5]} 13... Rfe8 {[%clk 0:02:23.5]}
14. dxc5 {[%clk 0:02:35.4]} 14... h6 {[%clk 0:02:16.8]} 15. Bxf6 {[%clk
0:01:54.2]} 15... Qxf6 {[%clk 0:02:17.7]} 16. Nc3 {[%clk 0:01:54.2]} 16... Rec8
{[%clk 0:02:03.8]} 17. Qb4 {[%clk 0:01:46.5]} 17... Bd5 {[%clk 0:01:42.1]} 18.
Nxd5 {[%clk 0:01:41.1]} 18... exd5 {[%clk 0:01:43]} 19. Rfd1 {[%clk 0:01:37.4]}
19... Qe5 {[%clk 0:01:35.6]} 20. e3 {[%clk 0:01:29]} 20... h5 {[%clk 0:01:27.4]}
21. Rd4 {[%clk 0:01:27.4]} 21... Rab8 {[%clk 0:01:16.1]} 22. Qa3 {[%clk
0:01:27]} 22... Rb7 {[%clk 0:01:08.3]} 23. Rad1 {[%clk 0:01:23.8]} 23... Rd7
{[%clk 0:01:07.4]} 24. Qa4 {[%clk 0:01:00.7]} 24... Rcc7 {[%clk 0:01:02.8]} 25.
c6 {[%clk 0:00:45.5]} 25... Rd6 {[%clk 0:00:57.4]} 26. Qb5 {[%clk 0:00:38.4]}
26... Rdxc6 {[%clk 0:00:40.4]} 27. Rxd5 {[%clk 0:00:36.1]} 27... Qe4 {[%clk
0:00:39.4]} 28. Rd8+ {[%clk 0:00:35]} 28... Kh7 {[%clk 0:00:35.3]} 29. Qxh5+
{[%clk 0:00:30]} 29... Rh6 {[%clk 0:00:34.8]} 30. Qd5 {[%clk 0:00:28.3]} 30...
Qc2 {[%clk 0:00:19.8]} 31. Qd2 {[%clk 0:00:22.8]} 31... Qe4 {[%clk 0:00:18.9]}
32. Qd5 {[%clk 0:00:21.9]} 32... Qc2 {[%clk 0:00:18.3]} 33. Qe5 {[%clk
0:00:20.1]} 33... Rf6 {[%clk 0:00:14.5]} 34. Rf1 {[%clk 0:00:17.7]} 34... c3
{[%clk 0:00:12.5]} 35. Qxc7 {[%clk 0:00:17.1]} 35... Qxb2 {[%clk 0:00:10.6]} 36.
Rc8 {[%clk 0:00:15.6]} 36... Qxa2 {[%clk 0:00:03.8]} 37. Qxc3 {[%clk 0:00:15.4]}
37... Qe6 {[%clk 0:00:03.5]} 38. Qc2+ {[%clk 0:00:15.5]} 38... Rg6 {[%clk
0:00:02.9]} 39. Rc4 {[%clk 0:00:14.3]} 39... Qh3 {[%clk 0:00:02.3]} 40. Rh4+
{[%clk 0:00:10.5]} 1-0

[Event "*** Titled Tuesday Blitz"]
[Site "Chess.com"]
[Date "2021.04.20"]
[Round "7"]
[White "exoticprincess"]
[Black "Durarbayli"]
[Result "1-0"]
[WhiteElo "2931"]
[BlackElo "2754"]
[TimeControl "180+1"]
[EndTime "11:17:00 PDT"]
[Termination "exoticprincess won on time"]

1. b3 {[%clk 0:02:59.5]} 1... Nf6 {[%clk 0:02:48.3]} 2. Bb2 {[%clk 0:02:59.5]}
2... g6 {[%clk 0:02:48.8]} 3. Bxf6 {[%clk 0:02:59.6]} 3... exf6 {[%clk
0:02:49.7]} 4. c4 {[%clk 0:03:00.5]} 4... d5 {[%clk 0:02:49.5]} 5. cxd5 {[%clk
0:03:01.4]} 5... Qxd5 {[%clk 0:02:50]} 6. Nc3 {[%clk 0:03:02.1]} 6... Qa5 {[%clk
0:02:50.4]} 7. a3 {[%clk 0:03:02.5]} 7... c5 {[%clk 0:02:45.4]} 8. g3 {[%clk
0:03:01.8]} 8... Nc6 {[%clk 0:02:43.1]} 9. Bg2 {[%clk 0:03:02.2]} 9... f5 {[%clk
0:02:40.1]} 10. e3 {[%clk 0:02:57]} 10... Be6 {[%clk 0:02:37]} 11. Nge2 {[%clk
0:02:56.5]} 11... Rd8 {[%clk 0:02:36.6]} 12. O-O {[%clk 0:02:55.7]} 12... Bg7
{[%clk 0:02:35.9]} 13. b4 {[%clk 0:02:48.5]} 13... cxb4 {[%clk 0:02:22.3]} 14.
axb4 {[%clk 0:02:49.4]} 14... Qxb4 {[%clk 0:02:23.1]} 15. d4 {[%clk 0:02:49.7]}
15... O-O {[%clk 0:02:16.9]} 16. Qb1 {[%clk 0:02:49.1]} 16... a5 {[%clk
0:01:51.9]} 17. Rc1 {[%clk 0:02:47.3]} 17... Bc4 {[%clk 0:01:45.4]} 18. Ra4
{[%clk 0:02:40.7]} 18... Qxb1 {[%clk 0:01:42.5]} 19. Rxb1 {[%clk 0:02:41.6]}
19... Ba6 {[%clk 0:00:56.4]} 20. Rb6 {[%clk 0:02:29.8]} 20... Rc8 {[%clk
0:00:50.8]} 21. Bf3 {[%clk 0:01:52.6]} 21... Rfd8 {[%clk 0:00:38.7]} 22. Kg2
{[%clk 0:01:51.2]} 22... Bf8 {[%clk 0:00:37.5]} 23. Bxc6 {[%clk 0:01:40.2]}
23... Rxc6 {[%clk 0:00:36.7]} 24. Rxc6 {[%clk 0:01:40.6]} 24... bxc6 {[%clk
0:00:37.6]} 25. Rxa5 {[%clk 0:01:41.5]} 25... Bb7 {[%clk 0:00:25.5]} 26. Kf1
{[%clk 0:01:14]} 26... Ra8 {[%clk 0:00:18.5]} 27. Rxa8 {[%clk 0:01:13.4]} 27...
Bxa8 {[%clk 0:00:19.4]} 28. Na4 {[%clk 0:01:13.1]} 28... Bb7 {[%clk 0:00:19.9]}
29. Nf4 {[%clk 0:01:05]} 29... Ba6+ {[%clk 0:00:19.7]} 30. Ke1 {[%clk
0:01:00.8]} 30... Bb4+ {[%clk 0:00:19.1]} 31. Kd1 {[%clk 0:01:01.1]} 31... Kf8
{[%clk 0:00:19.7]} 32. Nb2 {[%clk 0:00:55.5]} 32... Ke7 {[%clk 0:00:18.7]} 33.
Nfd3 {[%clk 0:00:55.6]} 33... Bc3 {[%clk 0:00:15.9]} 34. Kc2 {[%clk 0:00:55.1]}
34... Ba5 {[%clk 0:00:16.1]} 35. Ne5 {[%clk 0:00:49.4]} 35... Bb5 {[%clk
0:00:16.1]} 36. Nbd3 {[%clk 0:00:41.2]} 36... f6 {[%clk 0:00:15.5]} 37. Nf3
{[%clk 0:00:41.4]} 37... Kd6 {[%clk 0:00:14.5]} 38. h4 {[%clk 0:00:31]} 38...
Kd5 {[%clk 0:00:11.8]} 39. Nf4+ {[%clk 0:00:31.1]} 39... Kd6 {[%clk 0:00:11.2]}
40. Nd3 {[%clk 0:00:26.3]} 40... Kd5 {[%clk 0:00:11.4]} 41. Nf4+ {[%clk
0:00:26.2]} 41... Kd6 {[%clk 0:00:11.4]} 42. Nd2 {[%clk 0:00:20.2]} 42... g5
{[%clk 0:00:05.9]} 43. Nh5 {[%clk 0:00:20.2]} 43... Ke6 {[%clk 0:00:05.3]} 44.
Ng7+ {[%clk 0:00:20.1]} 1-0